fUST/lending_fUST_20250709
["ID","MTS","AMOUNT","RATE_DAILY","PERIOD"]
[370448959,1752023459123,-460.0,0.00020821,2]
[370448960,1752023459133,-460.0,0.00020821,2]
[370448961,1752023459143,-460.0,0.00020821,2]
[370448962,1752023459153,-1165.92,0.00020821,2]
[370448963,1752023459162,-883.64,0.00020821,2]
[370448964,1752023459172,-2564.17,0.00020821,2]
[370448965,1752023459183,-460.0,0.00020821,2]
[370448966,1752023459193,-993.18,0.00020821,2]
[370448967,1752023459202,-460.0,0.00020821,2]
[370448968,1752023459212,-904.93,0.00020821,2]
[370448969,1752023459223,-460.0,0.00020821,2]
[370448970,1752023459233,-293.17,0.00020821,2]
[370448971,1752023459244,-460.0,0.00020821,2]
[370448972,1752023459254,-1017.89,0.00020821,2]
[370448973,1752023459264,-460.0,0.00020821,2]
[370448974,1752023459274,-975.27,0.00020821,2]
[370448975,1752023459283,-460.0,0.00020821,2]
[370448976,1752023459293,-460.0,0.00020821,2]
[370448977,1752023459302,-460.0,0.00020821,2]
[370448978,1752023459312,-460.0,0.00020821,2]
[370448979,1752023459322,-460.0,0.00020821,2]
[370448980,1752023459331,-460.0,0.00020821,2]
[370448981,1752023459341,-319.81666574,0.00020821,2]
[370448982,1752023459350,-3735.49,0.00020821,2]
[370448983,1752023459360,-460.0,0.00020821,2]
[370448984,1752023459369,-460.0,0.00020821,2]
[370448985,1752023459379,-460.0,0.00020821,2]
[370448986,1752023459389,-460.0,0.00020821,2]
[370448987,1752023459398,-2026.08,0.00020821,2]
[370448988,1752023459408,-553.9,0.00020821,2]
[370448989,1752023459417,-460.0,0.00020821,2]
[370448990,1752023459427,-460.0,0.00020821,2]
[370448991,1752023459436,-630.78,0.00020821,2]
[370448992,1752023459563,-1799.14,0.00020821,2]
[370448993,1752023459574,-460.0,0.00020821,2]
[370448994,1752023459584,-2192.58,0.00020821,2]
[370448995,1752023459596,-204.62,0.00020821,2]
[370448996,1752023459605,-460.0,0.00020821,2]
[370448997,1752023459615,-460.0,0.00020821,2]
[370448998,1752023459625,-460.0,0.00020821,2]
[370448999,1752023459635,-1087.45,0.00020821,2]
[370449000,1752023459646,-848.32,0.00020821,2]
[370449001,1752023459655,-460.0,0.00020821,2]
[370449002,1752023459664,-1145.24,0.00020821,2]
[370449003,1752023459674,-460.0,0.00020821,2]
[370449004,1752023459686,-241.15354051,0.00020821,2]
[370449005,1752023459699,-572.26,0.00020821,2]
[370449006,1752023459708,-460.0,0.00020821,2]
[370449007,1752023459719,-504.62,0.00020821,2]
[370449008,1752023459728,-460.0,0.00020821,2]
[370449009,1752023459737,-460.0,0.00020821,2]
[370449010,1752023459747,-460.0,0.00020821,2]
[370449011,1752023459756,-723.73,0.00020821,2]
[370449012,1752023459766,-1151.74,0.00020821,2]
[370449013,1752023459775,-460.0,0.00020821,2]
[370449014,1752023459785,-460.0,0.00020821,2]
[370449015,1752023459795,-460.0,0.00020821,2]
[370449016,1752023459804,-676.78,0.00020821,2]
[370449017,1752023459814,-1444.34,0.00020821,2]
[370449018,1752023459824,-460.0,0.00020821,2]
[370449019,1752023459833,-460.0,0.00020821,2]
[370449020,1752023459842,-460.0,0.00020821,2]
[370449021,1752023459852,-565.55,0.00020821,2]
[370449022,1752023459863,-460.0,0.00020821,2]
[370449023,1752023459873,-460.0,0.00020821,2]
[370449024,1752023459883,-1510.41,0.00020821,2]
[370449025,1752023459893,-460.0,0.00020821,2]
[370449026,1752023459903,-460.0,0.00020821,2]
[370449027,1752023459914,-576.3,0.00020821,2]
[370449028,1752023459925,-500.52,0.00020821,2]
[370449029,1752023459936,-3346.57,0.00020821,2]
[370449030,1752023459946,-460.0,0.00020821,2]
[370449031,1752023459956,-582.79131054,0.00020821,2]
[370449032,1752023459965,-623.23,0.00020821,2]
[370449033,1752023459975,-151.0,0.00020823,2]
[370449034,1752023459986,-166.794053,0.0002083,2]
[370449035,1752023459996,-395.00653612,0.00020839,2]
[370449036,1752023460006,-245.0,0.0002085,2]
[370449037,1752023460016,-151.0,0.000209,3]
[370449038,1752023460026,-5239.9754233,0.00020934,4]
[370449039,1752023460038,-166.794053,0.0002097,2]
[370449040,1752023460048,-500.0,0.00020987,2]
[370449041,1752023460057,-151.0,0.00020987,2]
[370449042,1752023460066,-151.0,0.00020987,2]
[370449043,1752023460076,-151.0,0.00020987,2]
[370449044,1752023460086,-500.0,0.00021014,2]
[370449045,1752023460096,-151.0,0.00021014,2]
[370449046,1752023460105,-151.0,0.00021014,2]
[370449047,1752023460115,-151.0,0.00021014,2]
[370449048,1752023460125,-926.75408083,0.00021039,2]
[370449049,1752023460135,-500.0,0.00021042,2]
[370449050,1752023460144,-151.0,0.00021042,2]
[370449051,1752023460154,-198.0,0.00021042,2]
[370449052,1752023460164,-151.0,0.00021042,2]
[370449053,1752023460174,-600.0,0.00021048,2]
[370449054,1752023460184,-501.7701239,0.00021048,2]
[370449055,1752023460193,-500.0,0.00021069,2]
[370449056,1752023460204,-264.95655386,0.00021069,2]
[370449057,1752023460214,-151.0,0.00021069,2]
[370449058,1752023460225,-460.0,0.00021095,2]
[370449059,1752023460236,-460.0,0.00021095,2]
[370449060,1752023460245,-460.0,0.00021095,2]
[370449061,1752023460255,-151.0,0.00021095,2]
[370449062,1752023460265,-460.0,0.00021095,2]
[370449063,1752023460274,-151.0,0.00021095,2]
[370449064,1752023460284,-460.0,0.00021095,2]
[370449065,1752023460294,-151.0,0.00021095,2]
[370449066,1752023460304,-366.43,0.00021095,2]
[370449067,1752023460313,-460.0,0.00021095,2]
[370449068,1752023460324,-151.0,0.00021095,2]
[370449069,1752023460334,-460.0,0.00021095,2]
[370449070,1752023460347,-460.0,0.00021095,2]
[370449071,1752023460357,-192.232343,0.00021095,2]
[370449072,1752023460367,-192.232343,0.00021095,2]
[370449073,1752023460376,-550.72,0.00021095,2]
[370449074,1752023460385,-460.0,0.00021095,2]
[370449075,1752023460395,-460.0,0.00021095,2]
[370449076,1752023460404,-460.0,0.00021095,2]
[370449077,1752023460413,-546.68,0.00021095,2]
[370449078,1752023460423,-151.266482,0.00021095,2]
[370449079,1752023460434,-460.0,0.00021095,2]
[370449080,1752023460445,-151.0,0.00021095,2]
[370449081,1752023460455,-460.0,0.00021095,2]
[370449082,1752023460465,-489.06,0.00021095,2]
[370449083,1752023460478,-151.0,0.00021095,2]
[370449084,1752023460487,-151.0,0.00021095,2]
[370449085,1752023460497,-151.0,0.00021095,2]
[370449086,1752023460506,-460.0,0.00021095,2]
[370449087,1752023460516,-771.68,0.00021095,2]
[370449088,1752023460526,-460.0,0.00021095,2]
[370449089,1752023460535,-582.51,0.00021095,2]
[370449090,1752023460544,-151.0,0.00021095,2]
[370449091,1752023460553,-460.0,0.00021095,2]
[370449092,1752023460563,-460.0,0.00021095,2]
[370449093,1752023460573,-460.0,0.00021095,2]
[370449094,1752023460582,-151.0,0.00021095,2]
[370449095,1752023460592,-460.0,0.00021095,2]
[370449096,1752023460601,-460.0,0.00021095,2]
[370449097,1752023460611,-515.87,0.00021095,2]
[370449098,1752023460622,-460.0,0.00021095,2]
[370449099,1752023460631,-460.0,0.00021095,2]
[370449100,1752023460641,-460.0,0.00021095,2]
[370449101,1752023460651,-883.64,0.00021095,2]
[370449102,1752023460661,-1165.92,0.00021095,2]
[370449103,1752023460671,-2564.17,0.00021095,2]
[370449104,1752023460682,-460.0,0.00021095,2]
[370449105,1752023460694,-993.18,0.00021095,2]
[370449106,1752023460703,-460.0,0.00021095,2]
[370449107,1752023460712,-904.93,0.00021095,2]
[370449108,1752023460723,-460.0,0.00021095,2]
[370449109,1752023460734,-1017.89,0.00021095,2]
[370449110,1752023460744,-460.0,0.00021095,2]
[370449111,1752023460755,-460.0,0.00021095,2]
[370449112,1752023460767,-975.27,0.00021095,2]
[370449113,1752023460778,-460.0,0.00021095,2]
[370449114,1752023460788,-460.0,0.00021095,2]
[370449115,1752023460797,-460.0,0.00021095,2]
[370449116,1752023460807,-460.0,0.00021095,2]
[370449117,1752023460816,-151.0,0.00021095,2]
[370449118,1752023460826,-3735.49,0.00021095,2]
[370449119,1752023460835,-460.0,0.00021095,2]
[370449120,1752023460845,-460.0,0.00021095,2]
[370449121,1752023460855,-151.0,0.00021095,2]
[370449122,1752023460864,-151.0,0.00021095,2]
[370449123,1752023460873,-460.0,0.00021095,2]
[370449124,1752023460882,-460.0,0.00021095,2]
[370449125,1752023460893,-2026.08,0.00021095,2]
[370449126,1752023460902,-553.9,0.00021095,2]
[370449127,1752023460912,-460.0,0.00021095,2]
[370449128,1752023460922,-460.0,0.00021095,2]
[370449129,1752023460934,-630.78,0.00021095,2]
[370449130,1752023460943,-1799.14,0.00021095,2]
[370449131,1752023460953,-460.0,0.00021095,2]
[370449132,1752023460962,-2192.58,0.00021095,2]
[370449133,1752023460972,-460.0,0.00021095,2]
[370449134,1752023460982,-460.0,0.00021095,2]
[370449135,1752023460991,-460.0,0.00021095,2]
[370449136,1752023461002,-1087.45,0.00021095,2]
[370449137,1752023461011,-848.32,0.00021095,2]
[370449138,1752023461021,-460.0,0.00021095,2]
[370449139,1752023461031,-1145.24,0.00021095,2]
[370449140,1752023461041,-460.0,0.00021095,2]
[370449141,1752023461051,-572.26,0.00021095,2]
[370449142,1752023461061,-460.0,0.00021095,2]
[370449143,1752023461072,-504.62,0.00021095,2]
[370449144,1752023461083,-460.0,0.00021095,2]
[370449145,1752023461093,-460.0,0.00021095,2]
[370449146,1752023461105,-460.0,0.00021095,2]
[370449147,1752023461114,-723.73,0.00021095,2]
[370449148,1752023461125,-1151.74,0.00021095,2]
[370449149,1752023461135,-460.0,0.00021095,2]
[370449150,1752023461145,-460.0,0.00021095,2]
[370449151,1752023461155,-460.0,0.00021095,2]
[370449152,1752023461165,-676.78,0.00021095,2]
[370449153,1752023461175,-1444.34,0.00021095,2]
[370449154,1752023461186,-460.0,0.00021095,2]
[370449155,1752023461195,-460.0,0.00021095,2]
[370449156,1752023461205,-565.55,0.00021095,2]
[370449157,1752023461215,-460.0,0.00021095,2]
[370449158,1752023461224,-460.0,0.00021095,2]
[370449159,1752023461236,-1510.41,0.00021095,2]
[370449160,1752023461247,-460.0,0.00021095,2]
[370449161,1752023461258,-460.0,0.00021095,2]
[370449162,1752023461267,-576.3,0.00021095,2]
[370449163,1752023461277,-500.52,0.00021095,2]
[370449164,1752023461287,-3346.57,0.00021095,2]
[370449165,1752023461297,-460.0,0.00021095,2]
[370449166,1752023461307,-623.23,0.00021095,2]
[370449167,1752023461316,-500.0,0.00021097,2]
[370449168,1752023461326,-151.0,0.00021097,2]
[370449169,1752023461335,-151.0,0.000211,4]
[370449170,1752023461345,-151.0,0.000211,3]
[370449171,1752023461354,-178.177774,0.000211,2]
[370449172,1752023461363,-178.177774,0.000211,2]
[370449173,1752023461374,-166.794053,0.0002111,2]
[370449174,1752023461384,-2000.0,0.00021116,2]
[370449175,1752023461393,-2000.0,0.00021116,2]
[370449176,1752023461403,-500.0,0.00021124,2]
[370449177,1752023461412,-245.0,0.00021124,2]
[370449178,1752023461423,-5239.9754233,0.00021141,4]
[370449179,1752023461435,-500.0,0.00021151,2]
[370449180,1752023461445,-500.0,0.00021164,14]
[370449181,1752023461454,-500.0,0.00021179,2]
[370449182,1752023461464,-312.444814,0.00021206,2]
[370449183,1752023461474,-312.444814,0.00021206,2]
[370449184,1752023461484,-500.0,0.00021206,2]
[370449185,1752023461493,-500.0,0.00021234,2]
[370449186,1752023461502,-166.794053,0.0002125,2]
[370449187,1752023461512,-500.0,0.00021261,2]
[370449188,1752023461522,-500.0,0.00021288,2]
[370449189,1752023461532,-500.0,0.00021316,2]
[370449190,1752023461543,-500.0,0.00021343,2]
[370449191,1752023461554,-5239.9754233,0.00021348,5]
[370449192,1752023461563,-2011.99532331,0.00021364,2]
[370449193,1752023461573,-151.0,0.00021369,2]
[370449194,1752023461582,-151.0,0.00021369,2]
[370449195,1752023461593,-151.0,0.00021369,2]
[370449196,1752023461604,-460.0,0.00021369,2]
[370449197,1752023461725,-460.0,0.00021369,2]
[370449198,1752023461737,-151.0,0.00021369,2]
[370449199,1752023461749,-151.0,0.00021369,2]
[370449200,1752023461759,-460.0,0.00021369,2]
[370449201,1752023461769,-460.0,0.00021369,2]
[370449202,1752023461781,-460.0,0.00021369,2]
[370449203,1752023461791,-151.0,0.00021369,2]
[370449204,1752023461800,-151.0,0.00021369,2]
[370449205,1752023461810,-460.0,0.00021369,2]
[370449206,1752023461820,-550.72,0.00021369,2]
[370449207,1752023461830,-460.0,0.00021369,2]
[370449208,1752023461840,-460.0,0.00021369,2]
[370449209,1752023461849,-546.68,0.00021369,2]
[370449210,1752023461858,-151.0,0.00021369,2]
[370449211,1752023461868,-460.0,0.00021369,2]
[370449212,1752023461879,-460.0,0.00021369,2]
[370449213,1752023461889,-771.68,0.00021369,2]
[370449214,1752023461900,-460.0,0.00021369,2]
[370449215,1752023461910,-582.51,0.00021369,2]
[370449216,1752023461920,-460.0,0.00021369,2]
[370449217,1752023461929,-460.0,0.00021369,2]
[370449218,1752023461939,-460.0,0.00021369,2]
[370449219,1752023461948,-460.0,0.00021369,2]
[370449220,1752023461958,-515.87,0.00021369,2]
[370449221,1752023461968,-460.0,0.00021369,2]
[370449222,1752023461978,-460.0,0.00021369,2]
[370449223,1752023461989,-151.0,0.00021369,2]
[370449224,1752023462000,-883.64,0.00021369,2]
[370449225,1752023462009,-1165.92,0.00021369,2]
[370449226,1752023462020,-460.0,0.00021369,2]
[370449227,1752023462030,-2564.17,0.00021369,2]
[370449228,1752023462040,-993.18,0.00021369,2]
[370449229,1752023462051,-904.93,0.00021369,2]
[370449230,1752023462060,-460.0,0.00021369,2]
[370449231,1752023462070,-151.0,0.00021369,2]
[370449232,1752023462078,-1017.89,0.00021369,2]
[370449233,1752023462088,-460.0,0.00021369,2]
[370449234,1752023462098,-460.0,0.00021369,2]
[370449235,1752023462107,-975.27,0.00021369,2]
[370449236,1752023462116,-460.0,0.00021369,2]
[370449237,1752023462125,-460.0,0.00021369,2]
[370449238,1752023462134,-460.0,0.00021369,2]
[370449239,1752023462143,-460.0,0.00021369,2]
[370449240,1752023462153,-3735.49,0.00021369,2]
[370449241,1752023462162,-460.0,0.00021369,2]
[370449242,1752023462171,-369.92683422,0.00021369,2]
[370449243,1752023462180,-460.0,0.00021369,2]
[370449244,1752023462189,-460.0,0.00021369,2]
[370449245,1752023462198,-2026.08,0.00021369,2]
[370449246,1752023462207,-553.9,0.00021369,2]
[370449247,1752023462216,-460.0,0.00021369,2]
[370449248,1752023462225,-460.0,0.00021369,2]
[370449249,1752023462234,-630.78,0.00021369,2]
[370449250,1752023462243,-1799.14,0.00021369,2]
[370449251,1752023462252,-460.0,0.00021369,2]
[370449252,1752023462261,-2192.58,0.00021369,2]
[370449253,1752023462270,-460.0,0.00021369,2]
[370449254,1752023462280,-460.0,0.00021369,2]
[370449255,1752023462290,-460.0,0.00021369,2]
[370449256,1752023462299,-1087.45,0.00021369,2]
[370449257,1752023462312,-848.32,0.00021369,2]
[370449258,1752023462321,-460.0,0.00021369,2]
[370449259,1752023462331,-1145.24,0.00021369,2]
[370449260,1752023462340,-460.0,0.00021369,2]
[370449261,1752023462349,-572.26,0.00021369,2]
[370449262,1752023462359,-460.0,0.00021369,2]
[370449263,1752023462368,-504.62,0.00021369,2]
[370449264,1752023462378,-460.0,0.00021369,2]
[370449265,1752023462387,-460.0,0.00021369,2]
[370449266,1752023462397,-723.73,0.00021369,2]
[370449267,1752023462407,-460.0,0.00021369,2]
[370449268,1752023462417,-1151.74,0.00021369,2]
[370449269,1752023462427,-460.0,0.00021369,2]
[370449270,1752023462439,-460.0,0.00021369,2]
[370449271,1752023462448,-460.0,0.00021369,2]
[370449272,1752023462457,-676.78,0.00021369,2]
[370449273,1752023462466,-1444.34,0.00021369,2]
[370449274,1752023462475,-460.0,0.00021369,2]
[370449275,1752023462485,-460.0,0.00021369,2]
[370449276,1752023462495,-565.55,0.00021369,2]
[370449277,1752023462504,-1510.41,0.00021369,2]
[370449278,1752023462514,-460.0,0.00021369,2]
[370449279,1752023462523,-460.0,0.00021369,2]
[370449280,1752023462533,-576.3,0.00021369,2]
[370449281,1752023462543,-500.52,0.00021369,2]
[370449282,1752023462552,-3346.57,0.00021369,2]
[370449283,1752023462562,-460.0,0.00021369,2]
[370449284,1752023462571,-623.23,0.00021369,2]
[370449285,1752023462581,-500.0,0.00021371,2]
[370449286,1752023462591,-166.794053,0.0002139,2]
[370449287,1752023462600,-500.0,0.00021398,2]
[370449288,1752023462609,-151.0,0.000214,4]
[370449289,1752023462619,-641.0,0.000214,2]
[370449290,1752023462628,-215.0738,0.00021415,2]
[370449291,1752023462637,-163.082623,0.00021461,4]
[370449292,1752023462646,-166.794053,0.00021529,2]
[370449293,1752023462656,-151.0,0.00021543,2]
[370449294,1752023462665,-5239.9754233,0.00021555,5]
[370449295,1752023462675,-151.0,0.000216,4]
[370449296,1752023462687,-460.0,0.00021643,2]
[370449297,1752023462701,-460.0,0.00021643,2]
[370449298,1752023462710,-151.0,0.00021643,2]
[370449299,1752023462719,-460.0,0.00021643,2]
[370449300,1752023462730,-460.0,0.00021643,2]
[370449301,1752023462739,-460.0,0.00021643,2]
[370449302,1752023462748,-460.0,0.00021643,2]
[370449303,1752023462758,-151.0,0.00021643,2]
[370449304,1752023462768,-550.72,0.00021643,2]
[370449305,1752023462778,-460.0,0.00021643,2]
[370449306,1752023462787,-597.53,0.00021643,2]
[370449307,1752023462796,-546.68,0.00021643,2]
[370449308,1752023462806,-151.0,0.00021643,2]
[370449309,1752023462815,-460.0,0.00021643,2]
[370449310,1752023462824,-460.0,0.00021643,2]
[370449311,1752023462834,-771.68,0.00021643,2]
[370449312,1752023462843,-582.51,0.00021643,2]
[370449313,1752023462853,-460.0,0.00021643,2]
[370449314,1752023462863,-460.0,0.00021643,2]
[370449315,1752023462873,-515.87,0.00021643,2]
[370449316,1752023462882,-460.0,0.00021643,2]
[370449317,1752023462891,-460.0,0.00021643,2]
[370449318,1752023462901,-883.64,0.00021643,2]
[370449319,1752023462911,-1165.92,0.00021643,2]
[370449320,1752023462920,-460.0,0.00021643,2]
[370449321,1752023462930,-2564.17,0.00021643,2]
[370449322,1752023462940,-993.18,0.00021643,2]
[370449323,1752023462950,-904.93,0.00021643,2]
[370449324,1752023462959,-460.0,0.00021643,2]
[370449325,1752023462969,-1017.89,0.00021643,2]
[370449326,1752023462978,-460.0,0.00021643,2]
[370449327,1752023462989,-460.0,0.00021643,2]
[370449328,1752023462999,-975.27,0.00021643,2]
[370449329,1752023463009,-2827.694685,0.00021643,2]
[370449330,1752023463018,-460.0,0.00021643,2]
[370449331,1752023463028,-583.83,0.00021643,2]
[370449332,1752023463037,-2827.694685,0.00021643,2]
[370449333,1752023463047,-460.0,0.00021643,2]
[370449334,1752023463056,-460.0,0.00021643,2]
[370449335,1752023463066,-3735.49,0.00021643,2]
[370449336,1752023463075,-553.54715124,0.00021643,2]
[370449337,1752023463085,-460.0,0.00021643,2]
[370449338,1752023463095,-460.0,0.00021643,2]
[370449339,1752023463105,-2026.08,0.00021643,2]
[370449340,1752023463118,-553.9,0.00021643,2]
[370449341,1752023463128,-460.0,0.00021643,2]
[370449342,1752023463138,-460.0,0.00021643,2]
[370449343,1752023463148,-630.78,0.00021643,2]
[370449344,1752023463157,-1799.14,0.00021643,2]
[370449345,1752023463167,-460.0,0.00021643,2]
[370449346,1752023463177,-2192.58,0.00021643,2]
[370449347,1752023463187,-460.0,0.00021643,2]
[370449348,1752023463197,-561.30505171,0.00021643,2]
[370449349,1752023463206,-460.0,0.00021643,2]
[370449350,1752023463215,-848.32,0.00021643,2]
[370449351,1752023463224,-1087.45,0.00021643,2]
[370449352,1752023463234,-1145.24,0.00021643,2]
[370449353,1752023463243,-460.0,0.00021643,2]
[370449354,1752023463253,-572.26,0.00021643,2]
[370449355,1752023463263,-504.62,0.00021643,2]
[370449356,1752023463272,-558.73,0.00021643,2]
[370449357,1752023463282,-460.0,0.00021643,2]
[370449358,1752023463292,-723.73,0.00021643,2]
[370449359,1752023463302,-460.0,0.00021643,2]
[370449360,1752023463312,-1151.74,0.00021643,2]
[370449361,1752023463322,-460.0,0.00021643,2]
[370449362,1752023463332,-460.0,0.00021643,2]
[370449363,1752023463342,-460.0,0.00021643,2]
[370449364,1752023463351,-1444.34,0.00021643,2]
[370449365,1752023463362,-676.78,0.00021643,2]
[370449366,1752023463371,-460.0,0.00021643,2]
[370449367,1752023463381,-460.0,0.00021643,2]
[370449368,1752023463391,-565.55,0.00021643,2]
[370449369,1752023463402,-1510.41,0.00021643,2]
[370449370,1752023463411,-460.0,0.00021643,2]
[370449371,1752023463421,-460.0,0.00021643,2]
[370449372,1752023463430,-576.3,0.00021643,2]
[370449373,1752023463441,-500.52,0.00021643,2]
[370449374,1752023463451,-3346.57,0.00021643,2]
[370449375,1752023463462,-460.0,0.00021643,2]
[370449376,1752023463472,-623.23,0.00021643,2]
[370449377,1752023463482,-306.0,0.00021644,2]
[370449378,1752023463491,-306.0,0.00021644,2]
[370449379,1752023463501,-385.0,0.00021644,2]
[370449380,1752023463511,-2404.74280049,0.00021664,2]
[370449381,1752023463522,-4829.31278542,0.00021667,2]
[370449382,1752023463532,-166.794053,0.00021669,2]
[370449383,1752023463546,-587.0,0.00021682,2]
[370449384,1752023463556,-395.00653612,0.00021719,2]
[370449385,1752023463676,-168.0,0.00021742,2]
[370449386,1752023463690,-5239.9754233,0.00021762,5]
[370449387,1752023463700,-315.29,0.00021794,15]
[370449388,1752023463710,-166.794053,0.00021809,2]
[370449389,1752023463720,-500.0,0.00021891,2]
[370449390,1752023463730,-154.0,0.00021899,2]
[370449391,1752023463740,-157.0,0.00021899,2]
[370449392,1752023463749,-154.0,0.00021899,2]
[370449393,1752023463758,-154.0,0.00021899,2]
[370449394,1752023463768,-318.0,0.00021899,2]
[370449395,1752023463779,-318.0,0.00021899,2]
[370449396,1752023463788,-318.0,0.00021899,2]
[370449397,1752023463797,-318.0,0.00021899,2]
[370449398,1752023463807,-318.0,0.00021899,2]
[370449399,1752023463816,-318.0,0.00021899,2]
[370449400,1752023463826,-318.0,0.00021899,2]
[370449401,1752023463835,-318.0,0.00021899,2]
[370449402,1752023463845,-318.0,0.00021899,2]
[370449403,1752023463854,-318.0,0.00021899,2]
[370449404,1752023463863,-318.0,0.00021899,2]
[370449405,1752023463873,-318.0,0.00021899,2]
[370449406,1752023463882,-318.0,0.00021899,2]
[370449407,1752023463892,-318.0,0.00021899,2]
[370449408,1752023463902,-318.0,0.00021899,2]
[370449409,1752023463911,-318.0,0.00021899,2]
[370449410,1752023463921,-318.0,0.00021899,2]
[370449411,1752023463931,-318.0,0.00021899,2]
[370449412,1752023463942,-318.0,0.00021899,2]
[370449413,1752023463952,-318.0,0.00021899,2]
[370449414,1752023463961,-318.0,0.00021899,2]
[370449415,1752023463971,-318.0,0.00021899,2]
[370449416,1752023463981,-318.0,0.00021899,2]
[370449417,1752023463990,-318.0,0.00021899,2]
[370449418,1752023463999,-318.0,0.00021899,2]
[370449419,1752023464008,-318.0,0.00021899,2]
[370449420,1752023464017,-318.0,0.00021899,2]
[370449421,1752023464027,-318.0,0.00021899,2]
[370449422,1752023464036,-318.0,0.00021899,2]
[370449423,1752023464046,-318.0,0.00021899,2]
[370449424,1752023464055,-319.92909851,0.00021899,2]
[370449425,1752023464065,-159.0,0.00021899,2]
[370449426,1752023464074,-157.0,0.00021899,2]
[370449427,1752023464083,-159.0,0.00021899,2]
[370449428,1752023464093,-159.0,0.00021899,2]
[370449429,1752023464103,-159.0,0.00021899,2]
[370449430,1752023464112,-159.0,0.00021899,2]
[370449431,1752023464121,-159.0,0.00021899,2]
[370449432,1752023464130,-159.0,0.00021899,2]
[370449433,1752023464139,-159.0,0.00021899,2]
[370449434,1752023464149,-159.0,0.00021899,2]
[370449435,1752023464159,-159.0,0.00021899,2]
[370449436,1752023464168,-159.0,0.00021899,2]
[370449437,1752023464177,-169.36834577,0.00021899,2]
[370449438,1752023464188,-151.0,0.00021899,2]
[370449439,1752023464198,-151.0,0.00021899,2]
[370449440,1752023464208,-228.55565947,0.00021899,2]
[370449441,1752023464218,-161.76160232,0.00021899,2]
[370449442,1752023464227,-12500.0,0.00021899,2]
[370449443,1752023464237,-151.0,0.000219,3]
[370449444,1752023464247,-201.9119,0.000219,2]
[370449445,1752023464256,-151.0,0.00021908,2]
[370449446,1752023464265,-151.0,0.00021908,2]
[370449447,1752023464275,-12500.0,0.00021908,2]
[370449448,1752023464285,-73806.38955285,0.00021916,2]
[370449449,1752023464687,-460.0,0.00019178,2]
[370449450,1752023464700,-460.0,0.00019178,2]
[370449451,1752023464710,-460.0,0.00019178,2]
[370449452,1752023464720,-460.0,0.00019178,2]
[370449453,1752023464731,-439.96927737,0.00019178,2]
[370449454,1752023464850,-21.41795821,0.00019178,2]
[370449455,1752023464861,-460.0,0.00019178,2]
[370449456,1752023464871,-460.0,0.00019178,2]
[370449457,1752023464882,-460.0,0.00019178,2]
[370449458,1752023464891,-460.0,0.00019452,2]